Cogmind - Beta 15 @@@ ROGUE MODE // 2025.06.02 @ 17:58:25 Player: VT-MNC Result: Destroyed by M3-YCN(R) with Subdweller Laser Performance ------------- Evolutions (0) 0 Regions Visited (2) 400 Robots Destroyed (31) 155 Value Destroyed (633) 633 Prototype IDs (4) 80 Alien Tech Used (0) 0 Bonus (0) 0 TOTAL SCORE: 1268 Bonus ------- None Cogmind --------- Core Integrity 0/250 Matter 286/300 Energy 234/250 System Corruption 0% Temperature Cool (6) Movement Treading (320) Ox2 Location -10/Subcaves Parts ------- > --- POWER (1) -------- Ion Engine > --- PROPULSION (2) --- Light Treads Light Treads > --- UTILITY (2) ------ Huge Storage Unit Propulsion Shielding > --- WEAPON (2) ------- Particle Cannon Subdweller Machine Gun > --- INVENTORY (25) --- Ion Engine Heavy Ion Engine Light Treads Aluminum Leg Aluminum Leg Wheel Compact Wheel Subdweller Monowheel Large Storage Unit High-capacity Matter Pod (54) Structural Scanner Improved Terrain Scanner Authchip [Armor] Beam Cannon Particle Cannon Particle Cannon Particle Cannon Light Cannon Light Cannon Light Cannon EMP Blaster Grenade Launcher Grenade Launcher Mining Laser Plasma Cutter Peak State ------------ > --- POWER ------------ Ion Engine > --- PROPULSION ------- Aluminum Leg Compact Wheel > --- UTILITY ---------- Huge Storage Unit Light Armor Plating > --- WEAPON ----------- Particle Cannon EMP Blaster > --- INVENTORY -------- Ion Engine Heavy Ion Engine Light Treads Light Treads Light Treads Aluminum Leg Large Storage Unit High-capacity Matter Pod Structural Scanner Improved Terrain Scanner Seismic Detector Propulsion Shielding Authchip [Armor] Beam Cannon Particle Cannon Particle Cannon Particle Cannon Assault Rifle Light Cannon Light Cannon Light Cannon Grenade Launcher Grenade Launcher Mining Laser Plasma Cutter [Rating: 12] Favorites ----------- Power Ion Engine Engine Ion Engine Propulsion Light Treads Treads Light Treads Leg Aluminum Leg Wheel Compact Wheel Utility Huge Storage Unit Device Seismic Detector Storage Huge Storage Unit Processor Visual Processing Unit Protection Light Armor Plating Weapon Light Cannon Energy Gun EM Pulse Gun Energy Cannon Particle Cannon Ballistic Gun Subdweller Machine Gun Ballistic Cannon Light Cannon Launcher EMP Blaster Special Weapon Mining Laser Build | -11 -10 -10 ------- Run | Yrd Mat Sub Slots Evolved . | . . . Power . | . . . Propulsion . | . . . Utility . | . . . Weapon . | . . . Parts Attached 26 | 2 17 7 Power 2 | . 2 . Engine 2 | . 2 . Core . | . . . Reactor . | . . . Propulsion 6 | . 3 3 Treads 3 | . . 3 Leg 2 | . 2 . Wheel 1 | . 1 . Hover . | . . . Flight . | . . . Utility 7 | 1 5 1 Device 2 | 1 1 . Storage 2 | . 2 . Processor 1 | . 1 . Hackware . | . . . Protection 2 | . 1 1 Artifact . | . . . Weapon 11 | 1 7 3 Energy Gun 1 | . 1 . Energy Cannon 3 | . 2 1 Ballistic Gun 3 | 1 . 2 Ballistic Cannon 2 | . 2 . Launcher 1 | . 1 . Special Weapon 1 | . 1 . Impact Weapon . | . . . Slashing Weapon . | . . . Piercing Weapon . | . . . Special Melee Weapon . | . . . Unidentified Prototypes . | . . . Parts Lost 3 | . 1 2 Power 1 | . 1 . Propulsion . | . . . Utility 2 | . . 2 Weapon . | . . . Highest Loss Streak 1 | . 1 1 To Critical Strikes . | . . . Average Backups 20 | 6 16 24 Power 1 | 1 1 2 Propulsion 4 | 4 4 5 Utility 4 | . 4 6 Weapon 8 | 1 6 10 Tool/Special . | . . . Unused Backups 24 | . 11 13 Power 1 | . . 1 Propulsion 5 | . 3 2 Utility 9 | . 5 4 Weapon 8 | . 3 5 Tool/Special 1 | . . 1 Average Slot Usage (%) 99 | . 99 99 Engine 13 | . 13 14 Treads 11 | . . 27 Leg 10 | . 17 . Wheel 6 | . 10 . Device 6 | . 10 1 Storage 14 | . 14 14 Protection 7 | . 3 12 Energy Gun 1 | . 2 . Energy Cannon 8 | . 6 12 Ballistic Gun 3 | . 1 6 Ballistic Cannon 11 | . 14 6 Special Weapon 2 | . 2 2 Peak Build Rating 12 | 8 12 12 Average Rating 10 | 6 9 11 On Entrance 8 | 6 8 11 Naked Turns . | . . . Heaviest Build 96 | 12 96 96 Greatest Support 40 | 20 20 40 Greatest Overweight (x) 5 | . 5 5 Average Overweight (x) 3 | . 3 2 Largest Inventory Capacity 25 | 8 25 25 Average Capacity 22 | 8 20 25 Most Carried 25 | 8 25 25 Average Carried 20 | 6 17 24 Final Capacity 25 | 8 25 25 Final Carried 25 | 8 25 25 Class Distribution -------------------- 95% | Mutant 4% | Scavenger-Mutant Dominant Class ---------------- Mutant | -10/Materials Mutant | -10/Subcaves Resources | -11 -10 -10 ----------- Run | Yrd Mat Sub Matter Collected 1171 | 252 676 243 Remotely . | . . . Salvage Created 825 | 69 621 135 Parts 49 | 8 30 11 Haulers Intercepted 2 | . 2 . Recyclers Shooed 2 | . 2 . Parts Field Recycled . | . . . Retrieved Matter . | . . . Parts Self-Destructed 10 | . . 10 Prevented . | . . . Kills | -11 -10 -10 ------- Run | Yrd Mat Sub Combat Hostiles Destroyed 18 | . 14 4 Guns 4 | . 3 1 Cannons 14 | . 11 3 Classes Destroyed 9 | 2 6 1 Worker 3 | . 3 . Builder 1 | . 1 . Tunneler 1 | 1 . . Hauler 2 | . 2 . Recycler 3 | 1 2 . Watcher 3 | . 3 . Swarmer 6 | . 6 . Grunt 8 | . 8 . Subdweller 4 | . . 4 Best Kill Streak 5 | 2 5 2 Combat Bots Only 3 | . 3 2 Max Kills in Single Turn 2 | 1 2 1 Gunslinging . | . . . Exploded . | . . . Melee . | . . . Uniques/NPCs Destroyed . | . . . Combat | -11 -10 -10 -------- Run | Yrd Mat Sub Hostile Shots Fired 101 | . 59 42 Missed 27 | . 16 11 Hits 74 | . 43 31 Projectile 74 | . 43 31 Critical Strikes 1 | . 1 . Damage Taken 1212 | . 454 758 Core 253 | . 157 96 Absorbed by Shields . | . . . Redirected to Shielding 21 | . . 21 Regen/Repaired (Parts) 31 | . 31 . Core Remaining (%) 100 | 100 . . Volleys Fired 126 | 8 86 32 Largest 2 | 2 2 2 Hottest 100 | 40 100 100 Shots Fired 221 | 16 153 52 Gun 59 | 16 29 14 Cannon 140 | . 109 31 Launcher 1 | . 1 . Special 21 | . 14 7 Kinetic 141 | 16 101 24 Thermal 56 | . 28 28 Explosive . | . . . Electromagnetic 24 | . 24 . Robot Hit Streak 10 | 5 9 10 Robot Miss Streak 4 | 1 4 1 Penetration Max . | . . . Secondary Targets . | . . . Shots Hit Robots 121 | 11 77 33 Core Hits 43 | 5 31 7 Critical Kills . | . . . Critical Parts Destroyed . | . . . Critical Strikes 5 | . 5 . Blast 5 | . 5 . Melee Attacks . | . . . Impact . | . . . Slashing . | . . . Piercing . | . . . Sneak Attacks . | . . . Combat Hostiles . | . . . Follow-up Attacks . | . . . Damage Inflicted 2192 | 100 1430 662 Guns 535 | 100 240 195 Cannons 1538 | . 1071 467 Explosions 71 | . 71 . Melee . | . . . Ramming . | . . . Kinetic 1425 | 100 970 355 Thermal 546 | . 239 307 Explosive . | . . . Electromagnetic 221 | . 221 . Impact . | . . . Slashing . | . . . Piercing . | . . . Highest Corruption . | . . . Average Corruption . | . . . Corruption Purged . | . . . Corruption Blocked . | . . . Overload Shots . | . . . Overflow Damage 9 | . 9 . Projectiles 9 | . 9 . Explosions . | . . . Melee . | . . . Knockbacks 19 | . 18 1 Impact . | . . . Kinetic 17 | . 16 1 Secondary 2 | . 2 . Self-Inflicted Damage . | . . . Shots . | . . . Rammed . | . . . Targets Rammed . | . . . Kicked . | . . . Crushed . | . . . Highest Temperature 324 | . 324 1 Average Temperature 46 | . 48 1 Received Heat Transfer 279 | . 201 78 Effects 1 | . 1 . Energy Bleed 1 | . 1 . Siege Activations . | . . . Martial Activations . | . . . Shielding Activations . | . . . Robots Disrupted . | . . . Combat Hostiles . | . . . Robots Corrupted . | . . . Combat Hostiles . | . . . Parts Fried . | . . . Impact Corruptions . | . . . Robots Melted . | . . . Combat Hostiles . | . . . Parts Melted . | . . . Heat Transferred 977 | . 422 555 Parts Sabotaged . | . . . Parts Stolen . | . . . Parts Stripped . | . . . Power Chain Reactions 1 | . 1 . Alert | -11 -10 -10 ------- Run | Yrd Mat Sub Maximum Alert Level . | . . . Low Security (%) 100 | 100 100 . Level 1 . | . . . Level 2 . | . . . Level 3 . | . . . Level 4 . | . . . Level 5 . | . . . High Security . | . . . Max Security . | . . . Peak Influence 186 | 5 186 . Initial . | . . . Average 59 | . 60 . Influence Increases 606 | 10 596 . Destroy 0b10 Robot/C 280 | . 280 . Destroy 0b10 Robot/NC 65 | 10 55 . Destroy Leader 60 | . 60 . Successful Hack 44 | . 44 . Disable Machine 45 | . 45 . Destroy Structure 22 | . 22 . Lose Combat Pursuer 90 | . 90 . Influence Decreases 606 | 10 580 16 Entered New Map 8 | . . 8 Time Decay 588 | 10 570 8 Lost Part 10 | . 10 . Squads Dispatched 1 | . 1 . Investigation . | . . . Extermination . | . . . Reinforcement 1 | . 1 . Assault . | . . . Garrison . | . . . Intercept . | . . . Searches Triggered . | . . . Construction Impeded . | . . . Haulers Reinforced . | . . . Active Scanning Responses . | . . . Cargo Convoy Interrupts . | . . . Stealth | -11 -10 -10 --------- Run | Yrd Mat Sub Distress Signals 7 | . 7 . Communications Jammed . | . . . Distress Signals . | . . . Times Spotted 41 | . 35 6 Peak Tracking Total 5 | . 5 2 Tactical Retreats 3 | . 3 . Traps | -11 -10 -10 ------- Run | Yrd Mat Sub Traps Triggered 2 | . . 2 Indirectly . | . . . Trap Hack Attempts . | . . . Triggered . | . . . Disarmed . | . . . Reprogrammed . | . . . Reused . | . . . Traps Extracted . | . . . Installed . | . . . Triggered . | . . . Machines | -11 -10 -10 ---------- Run | Yrd Mat Sub Machines Disabled 3 | . 3 . Max in Single Turn 1 | . 1 . Machines Repaired . | . . . Machines Dismantled . | . . . Machines Sabotaged . | . . . Overloaded Fab Kills . | . . . Hacking | -11 -10 -10 --------- Run | Yrd Mat Sub Machines Accessed 9 | . 9 . Terminals 6 | . 6 . Fabricators . | . . . Repair Stations 1 | . 1 . Recycling Units 2 | . 2 . Scanalyzers . | . . . Garrison Access . | . . . Total Hacks 21 | . 21 . Successful 13 | . 13 . Failed 7 | . 7 . Catastrophic 1 | . 1 . Database Lockouts 1 | . 1 . Manual 5 | . 5 . Terminals 15 | . 15 . Fabricators . | . . . Repair Stations 3 | . 3 . Recycling Units 3 | . 3 . Scanalyzers . | . . . Garrison Access . | . . . Terminal Hacks 8 | . 8 . Part Schematic 1 | . 1 . Prototype ID Bank 2 | . 2 . Level Access Points 1 | . 1 . Alert Level 1 | . 1 . Locate Traps 1 | . 1 . Hauler Manifests 1 | . 1 . Registered Components 1 | . 1 . Fabricator Hacks . | . . . Repair Station Hacks 2 | . 2 . Scan Component 1 | . 1 . Repair 1 | . 1 . Recycling Unit Hacks 1 | . 1 . Retrieve Components 1 | . 1 . Scanalyzer . | . . . Garrison Access Hacks . | . . . Unauthorized Hacks 2 | . 2 . Terminals 2 | . 2 . Botnet 2 | . 2 . Fabricators . | . . . Repair Stations . | . . . Recycling Units . | . . . Scanalyzers . | . . . Garrison Access . | . . . Data Cores Recovered . | . . . Used . | . . . Hacking Detections 7 | . 7 . Full Trace Events . | . . . Feedback Events . | . . . Feedback Blocked . | . . . Robot Schematics Acquired . | . . . Robots Built . | . . . Authchips . | . . . Time . | . . . Total Robot Build Rating . | . . . Part Schematics Acquired 1 | . 1 . Parts Built . | . . . Authchips . | . . . Time . | . . . Total Part Build Rating . | . . . Parts Repaired 1 | . 1 . Time 13 | . 13 . Parts Recycled . | . . . Recycled Matter . | . . . Retrieved Matter . | . . . Retrieved Components 4 | . 4 . Parts Scanalyzed . | . . . Part Schematics Acquired . | . . . Parts Damaged . | . . . Bothacking | -11 -10 -10 ------------ Run | Yrd Mat Sub Used RIF Installer . | . . . Robots Hacked . | . . . Non-combat . | . . . Combat . | . . . Robot Hacks Applied . | . . . Relay Couplers Released . | . . . Fabnet Peak Effective % . | . . . Robots Rewired . | . . . Allies Hacked . | . . . Hacks Repelled . | . . . Allies | -11 -10 -10 -------- Run | Yrd Mat Sub Total Allies . | . . . Largest Group . | . . . Highest-Rated Group . | . . . Highest-Rated Ally . | . . . Total Orders . | . . . Ally Attacks . | . . . Total Damage . | . . . Kills . | . . . Allies Corrupted . | . . . Allies Melted . | . . . Intel | -11 -10 -10 ------- Run | Yrd Mat Sub Active Infowar (turns) 2037 | 25 1796 216 Optics 1 | . 1 . Terrain 43 | . 43 . Seismic 1993 | 25 1752 216 Robot Analysis Total . | . . . Derelict Logs Recovered . | . . . Drone Launches . | . . . Drone Recoveries . | . . . Exploration | -11 -10 -10 ------------- Run | Yrd Mat Sub Turns Passed 4344 | 70 2457 1817 Spaces Moved 1678 | 36 1171 471 Core . | . . . Treads 461 | . . 461 Legs 328 | 36 292 . Wheels 889 | . 879 10 Hover . | . . . Flight . | . . . Fastest Speed 120 | 120 120 175 Average Speed 204 | 120 161 316 Slowest Speed 320 | 120 175 320 Overloaded Moves . | . . . Propulsion Burnouts . | . . . Robots Hopped . | . . . Potential Cave-ins . | . . . Cave-ins Triggered . | . . . Exploration Rate (%) 40 | 4 98 19 Regions Visited 2 Branch Regions 1 Pre-discovered Areas . | . . . Known Exits Taken . | . . . Unknown Exits Taken 2 | 1 1 . Scrap Searched 1 | . . 1 Spaces Dug 12 | . 12 . Terrain Destroyed 17 | . 17 . Melee . | . . . Projectile 12 | . 12 . AOE 5 | . 5 . Terrain Rammed . | . . . Walls Destroyed . | . . . Machines Disabled . | . . . Actions | -11 -10 -10 --------- Run | Yrd Mat Sub Total 2327 | 47 1554 726 Wait 433 | . 227 206 Move 1676 | 35 1170 471 Hop . | . . . Pick Up 29 | 2 25 2 Fast Attach 9 | 1 7 1 Attach 2 | . . 2 Detach . | . . . Swap 34 | 1 22 11 Drop 18 | . 17 1 Fire 126 | 8 86 32 Melee . | . . . Ram . | . . . Kick . | . . . Crush . | . . . Escape Stasis . | . . . Rewire . | . . . Trap . | . . . Miscellaneous . | . . . Route ------- -11/Scrapyard -10/Materials (discovered 5 exits: *Mat x3 / [*Min] / [*Sub]) -10/Subcaves (discovered 2 exits: [*Mat] / [*Scr]) History --------- Turn | Location | Event 20 | -11/Scrapyard | Discovered new exit (range 3) 71 | -11/Scrapyard | Entered Materials 314 | -10/Materials | Build established: Mutant 351 | -10/Materials | Discovered new exit (range 12) 361 | -10/Materials | Central database locked down 646 | -10/Materials | Discovered new exit (range 8) 1392 | -10/Materials | Discovered new exit (range 16) 1447 | -10/Materials | Identified exit to Materials 1660 | -10/Materials | Discovered new exit (range 4) 1884 | -10/Materials | Core integrity fell below 50% 2394 | -10/Materials | Repaired Lgt. Armor Plating 2528 | -10/Materials | Entered Subcaves 2529 | -10/Subcaves | Approached by a straggling Scientist 2605 | -10/Subcaves | Discovered new exit (range 15) 3002 | -10/Subcaves | A swath of the cavern ceiling suddenly collapsed 3155 | -10/Subcaves | Scientist uncovered a shortcut to Scraptown 4169 | -10/Subcaves | Core integrity fell below 20% 4345 | -10/Subcaves | Destroyed by M3-YCN(R) with Subdweller Laser Last Messages --------------- 03399_ Subatomizers dissect the Mak. System Restoration Module. 03408_ 3Y-TCN(u) builds Twisted Machinery. 03410_ Subatomizers dissect the Mak. System Restoration Module. 03410_ 3Y-TCN(u) builds Twisted Machinery. 03778_ 3Y-TCN(u) deconstructs Twisted Machinery. 03846_ Triggered Shrapnel Trap. 03846_ An expanding cloud of shrapnel blasts out in all directions. 03895_ 3Y-TCN(u) deconstructs Twisted Machinery. 03925_ 3Y-TCN(u) builds Twisted Machinery. 04118_ Lgt. Armor Plating destroyed. 04121_ XA-2XS(R) destroyed. 04124_ Acquired 48 matter. 04131_ Acquired Sub. Monowheel. 04134_ Subatomizers dissect the Sub. Optics. 04179_ AY-P57(R) destroyed. 04200_ Subatomizers dissect the Sub. Power Source. 04204_ Acquired 30 matter. 04211_ Dropped Sub. Machine Gun. 04211_ Acquired Sub. Machine Gun. 04212_ Subatomizers dissect the Sub. Power Source. Map ----- +----------------------------------------------------+ | ?????????????????????????????????????????????????? | | ?????????????????????????????????????????????????? | | ?????????????????????????????????????????????????# | | ????????????????????????????????????????????????## | | ????????????????????????????????????????????????# | | ????????????????????????????????????????????????# | | ????????????????????????????????????????????????# | | ????????????????????????????????????????????????## | | ?????????????????????????????????????????????????# | | ?????????????????????????????????????????????????# | | ?????????????????????????????????????????????????# | | ????????????????????????????????????????????????## | | ???????????????????? #??????????????????????????# | | ????????????????????? ##????????????????????????# | | ????????????????????? ????????????????????????## | | ????????????????????? ??????????#??????????????? | | ?????????????????????? ???????? #??????????????? | | ?????????????????????? ??????? #???????????????? | | ?????????????????????? ?????? #???????????????? | | ??????????????????????? ????? #????????????????? | | ??????????????????????? #### ??????????????????# | | ????????????????#????### # ????????????????????# | | ????????????????# ### R ??????????????????????? | | ????????????????# R##??????????????????????? | | ????????????????# #### #??????????????????????? | | ????????????????????### @##?????????????????????? | | ????????????????????# ##????????############? | | ???????????????###### #???????## ## ## | | ??????????????## ###????## | | ??????????????# #???## | | ??????????????## ## !& ##### ! | | ???????????????##### &[ | | ???????????????????## *= ## | | ????????????????????# " "" ### # | | ????????????????????# " """"" ##?# # | | ????????????????????## "" " "" ##??# ## | | ?????????????????????## """" """ ##???# ## | | ?????????????????????## """" """"#????# ### | | ?????????????????????# """"""""""""#???# ### | | ?????????????????????## " """##???## ##?# | | ??????????????????????## ###?????##???# | | ???????????????????????## #????????????# | | ????????????????????????## ""##????????????## | | ??????????????????????????######??????????????#### | | ?????????????????????????????????????????????????? | | ?????????????????????????????????????????????????? | | ?????????????????????????????????????????????????? | | ?????????????????????????????????????????????????? | | ?????????????????????????????????????????????????? | | ?????????????????????????????????????????????????? | +----------------------------------------------------+ Best States ------------- Heat Dissipation 25 Energy Generation 10 Energy Capacity 400 Matter Stores 300 Matter Capacity 300 Sight Range 16 Terrain Scan Range 16 Terrain Scan Density 10 Armor Coverage 150 Propulsion Shielding 33 Evasion (%) 55 Recoil Reduction 2 Authchip Count 1 Item Schematics ----------------- Huge Storage Unit | -10/Materials | Hacked Robot Schematics ------------------ None Fabricated ------------ Nothing Repaired ---------- Lgt. Armor Plating | 65% | -10/Materials Alien Tech Used ----------------- None Achievements -------------- None Challenges ------------ None Game ------ Seed MobileAbsorptionSpoofer Manual? 0 Play Time 00:29:57 Cumulative 213.4 hours Start 2025.06.02 @ 17:30:49 End 2025.06.02 @ 17:58:25 Sessions 1 Manual Loads 0 Difficulty Rogue Special Mode None Game No. 31 Rogue 24 Adventurer 4 Explorer 3 Win Type - Total 21 Types 10/3/2/1/1/0/1/2/0/1 Lore% 67 Gallery% 80 Achievement% 71 Wizard Run 0 Options --------- Layout 0 ASCII 0 Keyboard 0 Movement Mouse Keybinds 0 Fullscreen 1 Font 18/TerminusBold Map View 76x50 Zoom Use 0% Tactical HUD 1 Map Filters NONE Filters NONE Steam 1 RUN: 8ad79a8a-3e16-40d0-9c31-2250a396680c